fUST/lending_fUST_20250408
["ID","MTS","AMOUNT","RATE_DAILY","PERIOD"]
[357449373,1744071051652,-1788.07,0.00023287,2]
[357449374,1744071051664,-621.11,0.00023287,2]
[357449375,1744071051675,-1130.24,0.00023287,2]
[357449376,1744071051687,-273.65,0.00023287,2]
[357449377,1744071051699,-500.0,0.00023287,2]
[357449378,1744071051709,-500.0,0.00023287,2]
[357449379,1744071051718,-540.91422563,0.00023287,2]
[357449380,1744071051729,-500.0,0.00023287,2]
[357449381,1744071051739,-500.0,0.00023287,2]
[357449382,1744071051749,-1034.15,0.00023287,2]
[357449383,1744071051759,-703.26,0.00023287,2]
[357449384,1744071051769,-521.62,0.00023287,2]
[357449385,1744071051778,-500.0,0.00023287,2]
[357449386,1744071051788,-912.33,0.00023287,2]
[357449387,1744071051797,-500.0,0.00023287,2]
[357449388,1744071051807,-500.0,0.00023287,2]
[357449389,1744071051816,-500.0,0.00023287,2]
[357449390,1744071051826,-1029.77,0.00023287,2]
[357449391,1744071051835,-500.0,0.00023287,2]
[357449392,1744071051845,-668.68,0.00023287,2]
[357449393,1744071051855,-500.0,0.00023287,2]
[357449394,1744071051865,-500.0,0.00023287,2]
[357449395,1744071051874,-722.87,0.00023287,2]
[357449396,1744071051884,-500.0,0.00023287,2]
[357449397,1744071051893,-797.61,0.00023287,2]
[357449398,1744071051903,-727.13,0.00023287,2]
[357449399,1744071051913,-500.0,0.00023287,2]
[357449400,1744071051922,-500.0,0.00023287,2]
[357449401,1744071051932,-1414.13,0.00023287,2]
[357449402,1744071051942,-625.97,0.00023287,2]
[357449403,1744071051951,-580.7,0.00023287,2]
[357449404,1744071051962,-500.0,0.00023287,2]
[357449405,1744071051974,-500.0,0.00023287,2]
[357449406,1744071051984,-5091.58,0.00023287,2]
[357449407,1744071051994,-500.0,0.00023287,2]
[357449408,1744071052003,-656.67,0.00023287,2]
[357449409,1744071052014,-500.0,0.00023287,2]
[357449410,1744071052023,-198.66,0.00023287,2]
[357449411,1744071052033,-505.42,0.00023287,2]
[357449412,1744071052043,-500.0,0.00023287,2]
[357449413,1744071052053,-739.59,0.00023287,2]
[357449414,1744071052063,-500.0,0.00023287,2]
[357449415,1744071052073,-500.0,0.00023287,2]
[357449416,1744071052082,-500.0,0.00023287,2]
[357449417,1744071052092,-500.0,0.00023287,2]
[357449418,1744071052102,-500.0,0.00023287,2]
[357449419,1744071052111,-1154.46,0.00023287,2]
[357449420,1744071052121,-500.0,0.00023287,2]
[357449421,1744071052131,-319.79214186,0.00023287,2]
[357449422,1744071052141,-576.56,0.00023287,2]
[357449423,1744071052150,-4350.93489359,0.000234,4]
[357449424,1744071052161,-500.0,0.00023561,2]
[357449425,1744071052170,-500.0,0.00023561,2]
[357449426,1744071052179,-152.17777469,0.00023561,2]
[357449427,1744071052189,-500.0,0.00023561,2]
[357449428,1744071052198,-500.0,0.00023561,2]
[357449429,1744071052208,-500.0,0.00023561,2]
[357449430,1744071052218,-547.56026486,0.00023561,2]
[357449431,1744071052227,-500.0,0.00023561,2]
[357449432,1744071052236,-500.0,0.00023561,2]
[357449433,1744071052246,-500.0,0.00023561,2]
[357449434,1744071052260,-500.0,0.00023561,2]
[357449435,1744071052269,-500.0,0.00023561,2]
[357449436,1744071052279,-500.0,0.00023561,2]
[357449437,1744071052288,-500.0,0.00023561,2]
[357449438,1744071052303,-500.0,0.00023561,2]
[357449439,1744071052312,-500.0,0.00023561,2]
[357449440,1744071052322,-500.0,0.00023561,2]
[357449441,1744071052332,-500.0,0.00023561,2]
[357449442,1744071052342,-500.0,0.00023561,2]
[357449443,1744071052352,-500.0,0.00023561,2]
[357449444,1744071052362,-500.0,0.00023561,2]
[357449445,1744071052372,-239.16027391,0.00023561,2]
[357449446,1744071052382,-500.0,0.00023561,2]
[357449447,1744071052391,-500.0,0.00023561,2]
[357449448,1744071052400,-162.23007951,0.00023561,2]
[357449449,1744071052410,-516.68,0.00023561,2]
[357449450,1744071052419,-500.0,0.00023561,2]
[357449451,1744071052429,-500.0,0.00023561,2]
[357449452,1744071052438,-552.85,0.00023561,2]
[357449453,1744071052447,-500.0,0.00023561,2]
[357449454,1744071052458,-500.0,0.00023561,2]
[357449455,1744071052467,-1077.56,0.00023561,2]
[357449456,1744071052614,-500.0,0.00023561,2]
[357449457,1744071052626,-500.0,0.00023561,2]
[357449458,1744071052636,-500.0,0.00023561,2]
[357449459,1744071052646,-500.0,0.00023561,2]
[357449460,1744071052658,-500.0,0.00023561,2]
[357449461,1744071052668,-500.0,0.00023561,2]
[357449462,1744071052678,-922.53,0.00023561,2]
[357449463,1744071052688,-500.0,0.00023561,2]
[357449464,1744071052698,-276.52629584,0.00023561,2]
[357449465,1744071052708,-500.0,0.00023561,2]
[357449466,1744071052718,-846.4,0.00023561,2]
[357449467,1744071052728,-593.42,0.00023561,2]
[357449468,1744071052738,-606.9,0.00023561,2]
[357449469,1744071052749,-344.17077606,0.00023561,2]
[357449470,1744071052759,-500.0,0.00023561,2]
[357449471,1744071052768,-500.0,0.00023561,2]
[357449472,1744071052778,-1031.3,0.00023561,2]
[357449473,1744071052788,-500.0,0.00023561,2]
[357449474,1744071052798,-1005.06,0.00023561,2]
[357449475,1744071052808,-646.62779272,0.00023561,2]
[357449476,1744071052818,-500.0,0.00023561,2]
[357449477,1744071052828,-500.0,0.00023561,2]
[357449478,1744071052839,-500.0,0.00023561,2]
[357449479,1744071052849,-500.0,0.00023561,2]
[357449480,1744071052859,-500.0,0.00023561,2]
[357449481,1744071052868,-500.0,0.00023561,2]
[357449482,1744071052878,-500.0,0.00023561,2]
[357449483,1744071052888,-626.68726257,0.00023561,2]
[357449484,1744071052898,-553.44166788,0.00023561,2]
[357449485,1744071052908,-762.57,0.00023561,2]
[357449486,1744071052917,-500.0,0.00023561,2]
[357449487,1744071052927,-500.0,0.00023561,2]
[357449488,1744071052937,-500.0,0.00023561,2]
[357449489,1744071052946,-500.0,0.00023561,2]
[357449490,1744071052957,-500.0,0.00023561,2]
[357449491,1744071052966,-810.87,0.00023561,2]
[357449492,1744071052976,-708.78,0.00023561,2]
[357449493,1744071052985,-500.0,0.00023561,2]
[357449494,1744071052995,-500.0,0.00023561,2]
[357449495,1744071053005,-500.0,0.00023561,2]
[357449496,1744071053016,-500.0,0.00023561,2]
[357449497,1744071053025,-732.62,0.00023561,2]
[357449498,1744071053035,-500.0,0.00023561,2]
[357449499,1744071053045,-500.0,0.00023561,2]
[357449500,1744071053054,-500.0,0.00023561,2]
[357449501,1744071053064,-1306.4,0.00023561,2]
[357449502,1744071053074,-1694.24,0.00023561,2]
[357449503,1744071053084,-1372.44,0.00023561,2]
[357449504,1744071053094,-1550.69,0.00023561,2]
[357449505,1744071053103,-500.0,0.00023561,2]
[357449506,1744071053113,-500.0,0.00023561,2]
[357449507,1744071053123,-500.0,0.00023561,2]
[357449508,1744071053133,-719.64,0.00023561,2]
[357449509,1744071053143,-527.99,0.00023561,2]
[357449510,1744071053154,-500.0,0.00023561,2]
[357449511,1744071053163,-774.73,0.00023561,2]
[357449512,1744071053173,-500.0,0.00023561,2]
[357449513,1744071053183,-500.0,0.00023561,2]
[357449514,1744071053193,-500.0,0.00023561,2]
[357449515,1744071053203,-910.87,0.00023561,2]
[357449516,1744071053212,-1062.59,0.00023561,2]
[357449517,1744071053222,-788.7,0.00023561,2]
[357449518,1744071053232,-500.0,0.00023561,2]
[357449519,1744071053243,-311.36505176,0.00023561,2]
[357449520,1744071053255,-157.6,0.00023561,2]
[357449521,1744071053266,-1455.88,0.00023561,2]
[357449522,1744071053276,-803.42,0.00023561,2]
[357449523,1744071053286,-599.48,0.00023561,2]
[357449524,1744071053297,-500.0,0.00023561,2]
[357449525,1744071053308,-528.31,0.00023561,2]
[357449526,1744071053318,-500.0,0.00023561,2]
[357449527,1744071053329,-3057.52,0.00023561,2]
[357449528,1744071053339,-500.0,0.00023561,2]
[357449529,1744071053349,-980.08,0.00023561,2]
[357449530,1744071053358,-500.0,0.00023561,2]
[357449531,1744071053368,-500.0,0.00023561,2]
[357449532,1744071053378,-500.0,0.00023561,2]
[357449533,1744071053388,-500.0,0.00023561,2]
[357449534,1744071053397,-1788.07,0.00023561,2]
[357449535,1744071053407,-1130.24,0.00023561,2]
[357449536,1744071053417,-500.0,0.00023561,2]
[357449537,1744071053427,-500.0,0.00023561,2]
[357449538,1744071053436,-500.0,0.00023561,2]
[357449539,1744071053446,-500.0,0.00023561,2]
[357449540,1744071053455,-1034.15,0.00023561,2]
[357449541,1744071053465,-703.26,0.00023561,2]
[357449542,1744071053474,-521.62,0.00023561,2]
[357449543,1744071053486,-500.0,0.00023561,2]
[357449544,1744071053495,-912.33,0.00023561,2]
[357449545,1744071053506,-500.0,0.00023561,2]
[357449546,1744071053516,-500.0,0.00023561,2]
[357449547,1744071053526,-500.0,0.00023561,2]
[357449548,1744071053536,-1029.77,0.00023561,2]
[357449549,1744071053546,-500.0,0.00023561,2]
[357449550,1744071053556,-668.68,0.00023561,2]
[357449551,1744071053565,-500.0,0.00023561,2]
[357449552,1744071053575,-500.0,0.00023561,2]
[357449553,1744071053585,-722.87,0.00023561,2]
[357449554,1744071053595,-500.0,0.00023561,2]
[357449555,1744071053606,-797.61,0.00023561,2]
[357449556,1744071053616,-727.13,0.00023561,2]
[357449557,1744071053626,-500.0,0.00023561,2]
[357449558,1744071053636,-500.0,0.00023561,2]
[357449559,1744071053646,-1414.13,0.00023561,2]
[357449560,1744071053656,-625.97,0.00023561,2]
[357449561,1744071053665,-580.7,0.00023561,2]
[357449562,1744071053675,-500.0,0.00023561,2]
[357449563,1744071053685,-419.8998913,0.00023561,2]
[357449564,1744071053694,-5091.58,0.00023561,2]
[357449565,1744071053704,-500.0,0.00023561,2]
[357449566,1744071053719,-656.67,0.00023561,2]
[357449567,1744071053729,-500.0,0.00023561,2]
[357449568,1744071053740,-505.42,0.00023561,2]
[357449569,1744071053750,-500.0,0.00023561,2]
[357449570,1744071053761,-739.59,0.00023561,2]
[357449571,1744071053771,-500.0,0.00023561,2]
[357449572,1744071053782,-500.0,0.00023561,2]
[357449573,1744071053792,-245.39999353,0.00023561,2]
[357449574,1744071053801,-500.0,0.00023561,2]
[357449575,1744071053811,-500.0,0.00023561,2]
[357449576,1744071053821,-1154.46,0.00023561,2]
[357449577,1744071053831,-500.0,0.00023561,2]
[357449578,1744071053841,-576.56,0.00023561,2]
[357449579,1744071053852,-354.00696216,0.00023835,2]
[357449580,1744071053862,-500.0,0.00023835,2]
[357449581,1744071053872,-500.0,0.00023835,2]
[357449582,1744071053882,-500.0,0.00023835,2]
[357449583,1744071053892,-500.0,0.00023835,2]
[357449584,1744071053902,-500.0,0.00023835,2]
[357449585,1744071053912,-500.0,0.00023835,2]
[357449586,1744071053922,-500.0,0.00023835,2]
[357449587,1744071053932,-500.0,0.00023835,2]
[357449588,1744071053942,-500.0,0.00023835,2]
[357449589,1744071053952,-500.0,0.00023835,2]
[357449590,1744071053961,-500.0,0.00023835,2]
[357449591,1744071053971,-500.0,0.00023835,2]
[357449592,1744071053981,-500.0,0.00023835,2]
[357449593,1744071053991,-500.0,0.00023835,2]
[357449594,1744071054000,-500.0,0.00023835,2]
[357449595,1744071054011,-500.0,0.00023835,2]
[357449596,1744071054020,-500.0,0.00023835,2]
[357449597,1744071054033,-500.0,0.00023835,2]
[357449598,1744071054042,-500.0,0.00023835,2]
[357449599,1744071054052,-516.68,0.00023835,2]
[357449600,1744071054062,-500.0,0.00023835,2]
[357449601,1744071054073,-500.0,0.00023835,2]
[357449602,1744071054082,-552.85,0.00023835,2]
[357449603,1744071054092,-500.0,0.00023835,2]
[357449604,1744071054102,-500.0,0.00023835,2]
[357449605,1744071054111,-1077.56,0.00023835,2]
[357449606,1744071054121,-500.0,0.00023835,2]
[357449607,1744071054130,-500.0,0.00023835,2]
[357449608,1744071054141,-500.0,0.00023835,2]
[357449609,1744071054151,-500.0,0.00023835,2]
[357449610,1744071054160,-500.0,0.00023835,2]
[357449611,1744071054170,-500.0,0.00023835,2]
[357449612,1744071054180,-922.53,0.00023835,2]
[357449613,1744071054190,-198.04,0.00023835,2]
[357449614,1744071054200,-500.0,0.00023835,2]
[357449615,1744071054209,-846.4,0.00023835,2]
[357449616,1744071054219,-593.42,0.00023835,2]
[357449617,1744071054229,-606.9,0.00023835,2]
[357449618,1744071054238,-500.0,0.00023835,2]
[357449619,1744071054249,-500.0,0.00023835,2]
[357449620,1744071054263,-1031.3,0.00023835,2]
[357449621,1744071054273,-500.0,0.00023835,2]
[357449622,1744071054282,-1005.06,0.00023835,2]
[357449623,1744071054293,-500.0,0.00023835,2]
[357449624,1744071054303,-500.0,0.00023835,2]
[357449625,1744071054312,-531.41683324,0.00023835,2]
[357449626,1744071054322,-500.0,0.00023835,2]
[357449627,1744071054333,-500.0,0.00023835,2]
[357449628,1744071054343,-500.0,0.00023835,2]
[357449629,1744071054352,-500.0,0.00023835,2]
[357449630,1744071054362,-762.57,0.00023835,2]
[357449631,1744071054372,-500.0,0.00023835,2]
[357449632,1744071054382,-500.0,0.00023835,2]
[357449633,1744071054392,-500.0,0.00023835,2]
[357449634,1744071054402,-500.0,0.00023835,2]
[357449635,1744071054412,-810.87,0.00023835,2]
[357449636,1744071054422,-708.78,0.00023835,2]
[357449637,1744071054432,-500.0,0.00023835,2]
[357449638,1744071054441,-500.0,0.00023835,2]
[357449639,1744071054450,-500.0,0.00023835,2]
[357449640,1744071054460,-500.0,0.00023835,2]
[357449641,1744071054470,-732.62,0.00023835,2]
[357449642,1744071054480,-500.0,0.00023835,2]
[357449643,1744071054490,-500.0,0.00023835,2]
[357449644,1744071054500,-500.0,0.00023835,2]
[357449645,1744071054510,-1306.4,0.00023835,2]
[357449646,1744071054520,-1694.24,0.00023835,2]
[357449647,1744071054530,-1372.44,0.00023835,2]
[357449648,1744071054539,-1550.69,0.00023835,2]
[357449649,1744071054549,-467.03,0.00023835,2]
[357449650,1744071054559,-500.0,0.00023835,2]
[357449651,1744071054568,-500.0,0.00023835,2]
[357449652,1744071054578,-719.64,0.00023835,2]
[357449653,1744071054588,-527.99,0.00023835,2]
[357449654,1744071054598,-500.0,0.00023835,2]
[357449655,1744071054607,-774.73,0.00023835,2]
[357449656,1744071054617,-500.0,0.00023835,2]
[357449657,1744071054626,-500.0,0.00023835,2]
[357449658,1744071054636,-910.87,0.00023835,2]
[357449659,1744071054645,-500.0,0.00023835,2]
[357449660,1744071054655,-1062.59,0.00023835,2]
[357449661,1744071054665,-788.7,0.00023835,2]
[357449662,1744071054675,-500.0,0.00023835,2]
[357449663,1744071054685,-1455.88,0.00023835,2]
[357449664,1744071054695,-803.42,0.00023835,2]
[357449665,1744071054705,-599.48,0.00023835,2]
[357449666,1744071054715,-500.0,0.00023835,2]
[357449667,1744071054724,-528.31,0.00023835,2]
[357449668,1744071054734,-500.0,0.00023835,2]
[357449669,1744071054744,-3057.52,0.00023835,2]
[357449670,1744071054754,-500.0,0.00023835,2]
[357449671,1744071054765,-980.08,0.00023835,2]
[357449672,1744071054775,-500.0,0.00023835,2]
[357449673,1744071054784,-388.52156503,0.00023835,2]
[357449674,1744071054794,-500.0,0.00023835,2]
[357449675,1744071054804,-500.0,0.00023835,2]
[357449676,1744071054813,-1788.07,0.00023835,2]
[357449677,1744071054823,-1130.24,0.00023835,2]
[357449678,1744071054832,-500.0,0.00023835,2]
[357449679,1744071054842,-500.0,0.00023835,2]
[357449680,1744071054851,-500.0,0.00023835,2]
[357449681,1744071054862,-500.0,0.00023835,2]
[357449682,1744071054871,-1034.15,0.00023835,2]
[357449683,1744071054881,-703.26,0.00023835,2]
[357449684,1744071054891,-521.62,0.00023835,2]
[357449685,1744071054900,-500.0,0.00023835,2]
[357449686,1744071054910,-912.33,0.00023835,2]
[357449687,1744071054919,-643.21597122,0.00023835,2]
[357449688,1744071054929,-158.6695493,0.00023835,2]
[357449689,1744071054939,-500.0,0.00023835,2]
[357449690,1744071054948,-1029.77,0.00023835,2]
[357449691,1744071054958,-500.0,0.00023835,2]
[357449692,1744071054967,-668.68,0.00023835,2]
[357449693,1744071054977,-500.0,0.00023835,2]
[357449694,1744071054987,-500.0,0.00023835,2]
[357449695,1744071054997,-722.87,0.00023835,2]
[357449696,1744071055006,-500.0,0.00023835,2]
[357449697,1744071055017,-797.61,0.00023835,2]
[357449698,1744071055027,-727.13,0.00023835,2]
[357449699,1744071055037,-500.0,0.00023835,2]
[357449700,1744071055047,-500.0,0.00023835,2]
[357449701,1744071055057,-1414.13,0.00023835,2]
[357449702,1744071055067,-625.97,0.00023835,2]
[357449703,1744071055076,-580.7,0.00023835,2]
[357449704,1744071055086,-500.0,0.00023835,2]
[357449705,1744071055096,-5091.58,0.00023835,2]
[357449706,1744071055105,-500.0,0.00023835,2]
[357449707,1744071055115,-656.67,0.00023835,2]
[357449708,1744071055125,-500.0,0.00023835,2]
[357449709,1744071055135,-505.42,0.00023835,2]
[357449710,1744071055144,-500.0,0.00023835,2]
[357449711,1744071055154,-739.59,0.00023835,2]
[357449712,1744071055163,-500.0,0.00023835,2]
[357449713,1744071055173,-500.0,0.00023835,2]
[357449714,1744071055182,-500.0,0.00023835,2]
[357449715,1744071055192,-500.0,0.00023835,2]
[357449716,1744071055201,-1154.46,0.00023835,2]
[357449717,1744071055211,-500.0,0.00023835,2]
[357449718,1744071055221,-576.56,0.00023835,2]
[357449719,1744071055230,-215.0738,0.00023942,2]
[357449720,1744071055240,-500.0,0.00024109,2]
[357449721,1744071055254,-500.0,0.00024109,2]
[357449722,1744071055265,-500.0,0.00024109,2]
[357449723,1744071055275,-500.0,0.00024109,2]
[357449724,1744071055285,-500.0,0.00024109,2]
[357449725,1744071055296,-500.0,0.00024109,2]
[357449726,1744071055305,-629.19183519,0.00024109,2]
[357449727,1744071055315,-500.0,0.00024109,2]
[357449728,1744071055325,-500.0,0.00024109,2]
[357449729,1744071055336,-500.0,0.00024109,2]
[357449730,1744071055345,-500.0,0.00024109,2]
[357449731,1744071055354,-500.0,0.00024109,2]
[357449732,1744071055364,-500.0,0.00024109,2]
[357449733,1744071055373,-500.0,0.00024109,2]
[357449734,1744071055383,-500.0,0.00024109,2]
[357449735,1744071055393,-500.0,0.00024109,2]
[357449736,1744071055402,-500.0,0.00024109,2]
[357449737,1744071055412,-500.0,0.00024109,2]
[357449738,1744071055422,-500.0,0.00024109,2]
[357449739,1744071055431,-516.68,0.00024109,2]
[357449740,1744071055441,-500.0,0.00024109,2]
[357449741,1744071055451,-500.0,0.00024109,2]
[357449742,1744071055461,-552.85,0.00024109,2]
[357449743,1744071055471,-500.0,0.00024109,2]
[357449744,1744071055481,-500.0,0.00024109,2]
[357449745,1744071055490,-1077.56,0.00024109,2]
[357449746,1744071055500,-303.98603065,0.00024109,2]
[357449747,1744071055510,-500.0,0.00024109,2]
[357449748,1744071055520,-500.0,0.00024109,2]
[357449749,1744071055529,-500.0,0.00024109,2]
[357449750,1744071055539,-500.0,0.00024109,2]
[357449751,1744071055549,-500.0,0.00024109,2]
[357449752,1744071055559,-922.53,0.00024109,2]
[357449753,1744071055568,-581.04462348,0.00024109,2]
[357449754,1744071055578,-846.4,0.00024109,2]
[357449755,1744071055587,-593.42,0.00024109,2]
[357449756,1744071055597,-606.9,0.00024109,2]
[357449757,1744071055607,-500.0,0.00024109,2]
[357449758,1744071055616,-500.0,0.00024109,2]
[357449759,1744071055626,-1031.3,0.00024109,2]
[357449760,1744071055635,-500.0,0.00024109,2]
[357449761,1744071055646,-1005.06,0.00024109,2]
[357449762,1744071055656,-500.0,0.00024109,2]
[357449763,1744071055665,-500.0,0.00024109,2]
[357449764,1744071055675,-500.0,0.00024109,2]
[357449765,1744071055822,-500.0,0.00024109,2]
[357449766,1744071055833,-500.0,0.00024109,2]
[357449767,1744071055843,-500.0,0.00024109,2]
[357449768,1744071055853,-762.57,0.00024109,2]
[357449769,1744071055863,-500.0,0.00024109,2]
[357449770,1744071055873,-500.0,0.00024109,2]
[357449771,1744071055883,-637.07352425,0.00024109,2]
[357449772,1744071055893,-440.0989177,0.00024109,2]
[357449773,1744071055903,-810.87,0.00024109,2]
[357449774,1744071055913,-708.78,0.00024109,2]
[357449775,1744071055922,-500.0,0.00024109,2]
[357449776,1744071055932,-500.0,0.00024109,2]
[357449777,1744071055942,-500.0,0.00024109,2]
[357449778,1744071055951,-500.0,0.00024109,2]
[357449779,1744071055961,-732.62,0.00024109,2]
[357449780,1744071055971,-500.0,0.00024109,2]
[357449781,1744071055981,-500.0,0.00024109,2]
[357449782,1744071055990,-500.0,0.00024109,2]
[357449783,1744071056000,-1306.4,0.00024109,2]
[357449784,1744071056010,-1694.24,0.00024109,2]
[357449785,1744071056020,-1372.44,0.00024109,2]
[357449786,1744071056030,-1550.69,0.00024109,2]
[357449787,1744071056040,-500.0,0.00024109,2]
[357449788,1744071056049,-500.0,0.00024109,2]
[357449789,1744071056059,-719.64,0.00024109,2]
[357449790,1744071056069,-527.99,0.00024109,2]
[357449791,1744071056080,-500.0,0.00024109,2]
[357449792,1744071056089,-774.73,0.00024109,2]
[357449793,1744071056099,-634.94,0.00024109,2]
[357449794,1744071056109,-500.0,0.00024109,2]
[357449795,1744071056119,-910.87,0.00024109,2]
[357449796,1744071056129,-500.0,0.00024109,2]
[357449797,1744071056139,-1062.59,0.00024109,2]
[357449798,1744071056149,-788.7,0.00024109,2]
[357449799,1744071056159,-500.0,0.00024109,2]
[357449800,1744071056169,-1455.88,0.00024109,2]
[357449801,1744071056179,-803.42,0.00024109,2]
[357449802,1744071056189,-599.48,0.00024109,2]
[357449803,1744071056198,-500.0,0.00024109,2]
[357449804,1744071056208,-528.31,0.00024109,2]
[357449805,1744071056218,-3057.52,0.00024109,2]
[357449806,1744071056228,-500.0,0.00024109,2]
[357449807,1744071056238,-980.08,0.00024109,2]
[357449808,1744071056250,-500.0,0.00024109,2]
[357449809,1744071056260,-500.0,0.00024109,2]
[357449810,1744071056271,-500.0,0.00024109,2]
[357449811,1744071056280,-1788.07,0.00024109,2]
[357449812,1744071056290,-1130.24,0.00024109,2]
[357449813,1744071056300,-500.0,0.00024109,2]
[357449814,1744071056310,-500.0,0.00024109,2]
[357449815,1744071056320,-500.0,0.00024109,2]
[357449816,1744071056332,-500.0,0.00024109,2]
[357449817,1744071056342,-1034.15,0.00024109,2]
[357449818,1744071056351,-703.26,0.00024109,2]
[357449819,1744071056361,-521.62,0.00024109,2]
[357449820,1744071056370,-500.0,0.00024109,2]
[357449821,1744071056380,-912.33,0.00024109,2]
[357449822,1744071056390,-404.72943887,0.00024109,2]
[357449823,1744071056401,-1029.77,0.00024109,2]
[357449824,1744071056411,-364.61556294,0.00024109,2]
[357449825,1744071056422,-668.68,0.00024109,2]
[357449826,1744071056432,-500.0,0.00024109,2]
[357449827,1744071056442,-500.0,0.00024109,2]
[357449828,1744071056452,-722.87,0.00024109,2]
[357449829,1744071056462,-500.0,0.00024109,2]
[357449830,1744071056471,-797.61,0.00024109,2]
[357449831,1744071056481,-727.13,0.00024109,2]
[357449832,1744071056490,-500.0,0.00024109,2]
[357449833,1744071056499,-629.10003969,0.00024109,2]
[357449834,1744071056509,-1414.13,0.00024109,2]
[357449835,1744071056519,-625.97,0.00024109,2]
[357449836,1744071056529,-580.7,0.00024109,2]
[357449837,1744071056538,-500.0,0.00024109,2]
[357449838,1744071056549,-5091.58,0.00024109,2]
[357449839,1744071056559,-500.0,0.00024109,2]
[357449840,1744071056568,-656.67,0.00024109,2]
[357449841,1744071056578,-500.0,0.00024109,2]
[357449842,1744071056588,-505.42,0.00024109,2]
[357449843,1744071056599,-500.0,0.00024109,2]
[357449844,1744071056609,-739.59,0.00024109,2]
[357449845,1744071056619,-500.0,0.00024109,2]
[357449846,1744071056629,-249.937789,0.00024109,2]
[357449847,1744071056639,-500.0,0.00024109,2]
[357449848,1744071056649,-500.0,0.00024109,2]
[357449849,1744071056659,-1154.46,0.00024109,2]
[357449850,1744071056670,-500.0,0.00024109,2]
[357449851,1744071056679,-576.56,0.00024109,2]
[357449852,1744071056689,-500.0,0.00024383,2]
[357449853,1744071056699,-500.0,0.00024383,2]
[357449854,1744071056709,-500.0,0.00024383,2]
[357449855,1744071056719,-500.0,0.00024383,2]
[357449856,1744071056729,-500.0,0.00024383,2]
[357449857,1744071056738,-500.0,0.00024383,2]
[357449858,1744071056748,-500.0,0.00024383,2]
[357449859,1744071056759,-500.0,0.00024383,2]
[357449860,1744071056769,-500.0,0.00024383,2]
[357449861,1744071056779,-500.0,0.00024383,2]
[357449862,1744071056789,-500.0,0.00024383,2]
[357449863,1744071056799,-500.0,0.00024383,2]
[357449864,1744071056809,-500.0,0.00024383,2]
[357449865,1744071056819,-500.0,0.00024383,2]
[357449866,1744071056829,-500.0,0.00024383,2]
[357449867,1744071056839,-500.0,0.00024383,2]
[357449868,1744071056849,-500.0,0.00024383,2]
[357449869,1744071056859,-500.0,0.00024383,2]
[357449870,1744071056869,-516.68,0.00024383,2]
[357449871,1744071056879,-500.0,0.00024383,2]
[357449872,1744071056889,-500.0,0.00024383,2]